{"text_format":"3","workbook":"xlsx","n_sheets":1,"sheets":["BOQ"],"read":"whole","date_system":"1900"}

{"sheet":"BOQ","index":0,"n_rows":85,"n_cols":4,"rows_kept":85,"merged":[[51,0,52,0],[51,1,52,1]]}
["1. Costs for migration "]
[]
["DESCRIPTION","QTY","COST PER UNIT","TOTALCOST"]
["AUDIO"]
["Sub-miniature lavalier microphones Black",26,null,{"$f":"B5*C5","v":0}]
["Sub-miniature lavalier microphones Beige",6,null,{"$f":"B6*C6","v":0}]
["Digital Wireless Body Pack transmitters",32,null,0]
["Digital Wireless Hand Held Transmitters",12,null,0]
["Dual Recievers with Dante card",16,null,0]
["UHF Active antenna",6,null,0]
["Digital wireless system combiners",4,null,0]
["Body pack transmitters charging set",32,null,0]
["Handheld transmitters charging set",12,null,0]
["Flight cases",3,null,0]
["10m RG58 Co-axial 50 ohms BNC cables",6,null,0]
["1m Co-axial Connecting Cables, BNC/BNC",32,null,0]
["Sub total",null,null,{"$f":"SUM(D5:D16)","v":0}]
[]
["EQUIPMENT HOUSING"]
["Floor standing equipment cabinet 10ux600x600",1,null,{"$f":"B20*C20","v":0}]
["Floor standing equipment cabinet 16ux600x600",1,null,{"$f":"B21*C21","v":0}]
["8U FLIGHTCASE ON CASTORS",1,null,0]
["Lockable mic storage drawer c/w foam cutouts for handhelds & body packs",1,null,0]
["Sub total",null,null,{"$f":"SUM(D20:D23)","v":0}]
[]
["INSTALLATION ,PRELIMENARIES & GENERAL"]
["System Installation, Training, Commissioning & Handover"]
["Sub Total",null,null,{"$f":"SUM(D27)","v":0}]
[]
["Sub Total General",null,null,{"$f":"D17+D24+D28","v":0}]
[]
[]
[]
["2.     Costs for Other Sound Equipment"]
[]
["DESCRIPTION","QTY","COST PER UNIT","TOTALCOST"]
["Mixing console",1,null,{"$f":"B37*C37","v":0}]
["64Ch I/O stage boxes",2]
["Tablet for remote control",1]
["Dante expansion card 128ch bi-directional",1]
["Personal monitor option card",1]
["Flight case",1]
["Sub total",null,null,{"$f":"SUM(D37)","v":0}]
["MICROPHONES"]
["Dynamic vocal microphones ",15,null,{"$f":"B45*C45","v":0}]
["Active mono DI boxes",8,null,0]
["Active dual DI boxes ",4,null,0]
["Passive mono DI boxes",4,null,0]
["Sub total",null,null,{"$f":"SUM(D45:D48)","v":0}]
["BACKLINE"]
["Full Drum Kit set/ with Bags",1,null,{"$f":"B51*C51","v":0}]
["Full Percussion set",1,null,0]
[{"$nulls":3},0]
["Keyboard in (flight case)",1,null,0]
["Synth Keys (flight case)",1,null,0]
["Acoustic Guitar amps on wheels",1,null,0]
["Lead Guitar amp on wheels",1,null,0]
["500W (RMS) Bass Amplifier head ",1,null,0]
["6 x 10' bass speaker cabinet on wheels",1,null,0]
["Spider - Keyboard stand",1,null,0]
["2 x 2,5m Rubberised Carpet",1,null,0]
["Set of Drum Perspex Screens",1,null,0]
["Sub total",null,null,{"$f":"SUM(D51:D62)","v":0}]
["CABLES"]
["10m XLR pre-made cable",30,null,{"$f":"B65*C65","v":0}]
["20m XLR pre-made cable",10,null,0]
["10m cat6 ",10,null,0]
["20m cat6 cable",8,null,0]
["Sub total",null,null,{"$f":"SUM(D65:D68)","v":0}]
["MONITORS"]
["Advanced wireless IEM system",6,null,{"$f":"B71*C71","v":0}]
["Antenna combiner",2,null,0]
["Active Antenna",2,null,0]
["Full Personal IEM mixing system ",8,null,0]
["12' 2way floor monitor with protective bag",8,null,0]
["15' 2way floor monitor floor monitor with protective bag",6,null,0]
["2 x channel Power Amplifier ",6,null,0]
["Headphones ",8,null,0]
["Sub total",null,null,{"$f":"SUM(D71:D78)","v":0}]
[]
["Subtotal General",null,null,{"$f":"D43+D49+D63+D69+D79","v":0}]
[]
["TOTAL EXCLUDING VAT",null,null,{"$f":"D81+D30","v":0}]
["VAT",null,null,{"$f":"D83*0.15","v":0}]
["TOTAL INCLUDING VAT",null,null,{"$f":"D83+D84","v":0}]